bitfinex-derivatives/quotes_ETHF0:USTF0_20240817
["timestamp","ask_amount","ask_price","bid_price","bid_amount"]
[1723857140519,10.97601568,2604.4,2604.3,0.00487285]
[1723857140720,8.96702,2604.4,2604.3,0.00487285]
[1723857141017,10.97601957,2604.4,2604.3,0.00487285]
[1723857141321,10.9760017,2604.4,2604.3,0.00487285]
[1723857141620,7.7682017,2604.4,2604.3,0.00487285]
[1723857141818,10.97600524,2604.4,2604.3,0.00487285]
[1723857142520,10.97598758,2604.4,2604.3,0.00487285]
[1723857142821,10.97602158,2604.4,2604.3,0.00487285]
[1723857143018,8.96702,2604.4,2604.3,0.00487285]
[1723857143221,9.34442,2604.4,2604.3,0.00487285]
[1723857146119,6.13662,2604.4,2604.3,0.00487285]
[1723857146318,9.34442,2604.4,2604.3,0.00487285]
[1723857146723,11.35354342,2604.4,2604.3,0.00487285]
[1723857146923,10.97614342,2604.4,2604.3,0.00487285]
[1723857147122,10.97614342,2604.4,2604.3,0.36877285]
[1723857147516,7.13614342,2604.4,2604.3,1.47477285]
[1723857148020,5.21692342,2604.4,2604.3,1.83557285]
[1723857148215,1.51027155,2604.6,2604.3,9.8129227]
[1723857148420,1.51027155,2604.6,2604.5,3.02515]
[1723857148623,0.00341021,2604.6,2604.5,3.02515]
[1723857150321,1.51027155,2604.6,2604.5,1.106]
[1723857150723,0.38081021,2604.6,2604.3,0.36877285]
[1723857151021,1.50680094,2604.4,2604.3,1.47477285]
[1723857153025,1.50680094,2604.4,2604.3,3.39406285]
[1723857153922,2.01253363,2604.6,2604.4,1.91922]
[1723857154123,2.01253363,2604.6,2604.5,1.106]
[1723857154517,0.00341021,2604.6,2604.5,1.106]
[1723857155030,2.01397414,2604.6,2604.5,1.106]
[1723857155329,0.00341021,2604.6,2604.5,1.106]
[1723857155534,2.01407067,2604.6,2604.5,1.106]
[1723857155731,0.00341021,2604.6,2604.5,1.106]
[1723857155930,2.0140633,2604.6,2604.5,1.106]
[1723857156630,0.00341021,2604.6,2604.5,1.106]
[1723857156824,2.01419336,2604.6,2604.5,1.106]
[1723857159728,3.93326336,2604.6,2604.5,1.106]
[1723857160227,2.01419336,2604.6,2604.5,1.106]
[1723857161238,2.01419336,2604.6,2604.5,3.02515]
[1723857162031,0.00341021,2604.6,2604.5,3.02515]
[1723857162222,2.01419336,2604.6,2604.5,3.02515]
[1723857162422,0.00341021,2604.6,2604.5,3.02515]
[1723857162821,2.01419336,2604.6,2604.5,3.02515]
[1723857163026,0.00341021,2604.6,2604.5,3.02515]
[1723857163529,2.01419336,2604.6,2604.5,1.106]
[1723857163725,0.00341021,2604.6,2604.5,1.106]
[1723857163936,2.01419336,2604.6,2604.5,1.106]
[1723857164234,0.00341021,2604.6,2604.5,1.106]
[1723857164436,2.01419336,2604.6,2604.5,1.106]
[1723857165135,2.01419336,2604.6,2604.5,3.02515]
[1723857165328,0.00341021,2604.6,2604.5,3.02515]
[1723857166136,1.51155412,2604.6,2604.5,3.02515]
[1723857167734,1.51155412,2604.6,2604.5,1.106]
[1723857169630,0.00341021,2604.6,2604.5,1.106]
[1723857169826,3.93326336,2604.6,2604.5,1.106]
[1723857170829,2.01419336,2604.6,2604.4,1.106]
[1723857171026,2.72418315,2604.5,2604.4,1.106]
[1723857171233,0.7134,2604.5,2604.4,1.106]
[1723857172240,2.63255,2604.5,2604.4,1.106]
[1723857174042,4.14041347,2604.5,2604.4,1.106]
[1723857174239,2.63255,2604.5,2604.4,1.106]
[1723857174643,1.91922,2604.4,2604.3,0.00487285]
[1723857174839,3.92997872,2604.4,2604.3,0.00487285]
[1723857175044,3.92997872,2604.4,2604.3,1.11087285]
[1723857175045,7.76997872,2604.4,2604.3,1.11087285]
[1723857175247,2.01075872,2604.4,2604.3,1.11087285]
[1723857175442,2.01075872,2604.4,2604.3,3.03016285]
[1723857175640,1.50806289,2604.4,2604.3,4.95087285]
[1723857175949,2.01416893,2604.6,2604.4,1.91922]
[1723857176248,2.01416893,2604.6,2604.4,3.36812]
[1723857176439,1.88180447,2604.5,2604.4,3.36812]
[1723857176642,0.3738,2604.5,2604.4,3.36812]
[1723857177240,0.3738,2604.5,2604.4,7.20732]
[1723857177458,0.3738,2604.5,2604.4,3.36812]
[1723857177748,0.3738,2604.5,2604.4,7.20732]
[1723857178747,0.3738,2604.5,2604.4,1.4489]
[1723857178939,2.29295,2604.5,2604.3,1.11087285]
[1723857179141,2.3729067,2604.4,2604.3,1.11087285]
[1723857183244,2.7328067,2604.4,2604.3,1.11087285]
[1723857183642,2.0111067,2604.4,2604.3,1.11087285]
[1723857183841,1.88237212,2604.5,2604.3,3.03016285]
[1723857184038,1.88237212,2604.5,2604.4,3.02522]
[1723857184250,1.50857212,2604.5,2604.4,3.02522]
[1723857185254,1.50857212,2604.5,2604.4,6.86442]
[1723857186543,1.50857212,2604.5,2604.4,3.8392]
[1723857186749,2.01451691,2604.6,2604.4,1.106]
[1723857186945,1.50880823,2604.5,2604.4,1.106]
[1723857187151,2.01451691,2604.6,2604.4,1.106]
[1723857188448,1.50900233,2604.5,2604.4,1.106]
[1723857188649,1.50900233,2604.5,2604.4,3.02522]
[1723857188854,2.01451691,2604.6,2604.4,3.02522]
[1723857189057,1.50899749,2604.5,2604.4,3.02522]
[1723857189257,1.50912456,2604.5,2604.4,3.02522]
[1723857189458,2.01451691,2604.6,2604.4,1.106]
[1723857189957,2.01451691,2604.6,2604.4,3.02522]
[1723857189958,1.50912369,2604.5,2604.4,3.02522]
[1723857190356,1.50929979,2604.5,2604.4,3.02522]
[1723857190653,2.01451691,2604.6,2604.4,3.02522]
[1723857191053,2.01451691,2604.6,2604.4,1.106]
[1723857191759,2.01451691,2604.6,2604.4,3.02522]
[1723857191950,2.01451691,2604.6,2604.5,1.91915]
[1723857192152,2.01451691,2604.6,2604.5,2.27055]
[1723857192359,2.01451691,2604.6,2604.5,0.3514]
[1723857192953,1.92248021,2604.6,2604.4,1.106]
[1723857193158,2.01301895,2604.5,2604.3,0.00487285]
[1723857193351,2.01301895,2604.5,2604.4,1.106]
[1723857195066,3.93216895,2604.5,2604.4,1.106]
[1723857195355,4.43412556,2604.6,2604.4,1.106]
[1723857195761,2.01343366,2604.5,2604.4,1.106]
[1723857196165,2.01343366,2604.5,2604.3,1.11087285]
[1723857196166,8.26994535,2604.5,2604.3,1.11087285]
[1723857196354,2.28942,2604.4,2604.3,1.11087285]
[1723857196755,8.14293578,2604.4,2604.3,1.11087285]
[1723857197056,8.14294848,2604.4,2604.3,1.11087285]
[1723857197555,8.64101535,2604.4,2604.3,1.11087285]
[1723857197956,6.12942,2604.4,2604.3,1.11087285]
[1723857198361,8.64101535,2604.4,2604.3,1.11087285]
[1723857198759,6.12942,2604.4,2604.3,1.11087285]
[1723857199063,2.01362231,2604.4,2604.3,3.03013285]
[1723857199864,2.01362231,2604.4,2604.3,0.00487285]
[1723857200061,3.93284231,2604.4,2604.3,1.11087285]
[1723857200261,1.91922,2604.4,2604.3,1.11087285]
[1723857200461,2.01362206,2604.4,2604.3,1.11087285]
[1723857202557,2.01362206,2604.4,2604.3,3.03016285]
[1723857202758,2.01362206,2604.5,2604.3,1.11087285]
[1723857202970,4.43413556,2604.6,2604.4,1.106]
[1723857203265,1.91915,2604.5,2604.4,1.106]
[1723857203657,4.43412556,2604.6,2604.4,1.106]
[1723857203858,2.01343962,2604.5,2604.4,3.02518]
[1723857204058,2.01343962,2604.5,2604.4,3.74828]
[1723857206974,2.01343962,2604.5,2604.4,3.38448]
[1723857208874,1.91917,2604.5,2604.3,0.00487285]
[1723857209070,1.91917,2604.5,2604.3,1.11087285]
[1723857209071,2.01358921,2604.4,2604.3,1.11087285]
[1723857209373,3.93280921,2604.4,2604.3,1.11087285]
[1723857209562,2.01358921,2604.4,2604.3,1.11087285]
[1723857210673,3.93277921,2604.5,2604.3,1.11087285]
[1723857211769,3.84,2604.4,2604.3,0.00487285]
[1723857211974,3.84,2604.4,2603.8,0.99582611]
[1723857211975,12.0478,2604.4,2603.8,0.99582611]
[1723857212166,1.91966,2603.8,2603.5,1.106]
[1723857212479,1.91981,2603.6,2603.5,1.106]
[1723857212873,5.76061,2603.6,2603.5,1.106]
[1723857213065,5.76061,2603.6,2603.5,1.10996257]
[1723857213268,7.77216184,2603.6,2603.5,1.10996257]
[1723857214272,5.76061,2603.6,2603.5,1.10996257]
[1723857214472,1.50785023,2603.6,2603.5,1.10996257]
[1723857214769,2.24085023,2603.7,2603.5,3.02984257]
[1723857215072,2.24085023,2603.7,2603.6,1.106]
[1723857215262,2.59835023,2603.7,2603.6,1.106]
[1723857217376,1.0905,2603.7,2603.6,1.106]
[1723857217575,2.59835023,2603.7,2603.6,1.106]
[1723857217975,1.0905,2603.7,2603.6,1.106]
[1723857219070,3.01024,2603.7,2603.6,1.106]
[1723857219869,1.0905,2603.7,2603.6,1.106]
[1723857220471,0.7262,2603.7,2603.6,1.106]
[1723857220666,0.7262,2603.7,2603.6,1.4515]
[1723857222374,1.50785023,2603.9,2603.6,1.4515]
[1723857222575,2.20165023,2604.1,2603.8,3.02562]
[1723857222781,2.61324,2604.1,2604.0,1.106]
[1723857222977,0.6938,2604.1,2604.0,1.106]
[1723857225273,2.61324,2604.1,2604.0,1.106]
[1723857225471,2.61324,2604.1,2603.9,1.106]
[1723857225772,4.12109023,2604.1,2603.9,1.106]
[1723857226972,1.91951,2604.0,2603.9,1.106]
[1723857229874,5.12731,2604.0,2603.9,1.106]
[1723857230574,1.91951,2604.0,2603.9,1.106]
[1723857231776,1.91959,2603.9,2603.8,1.106]
[1723857231976,1.91959,2603.9,2603.6,1.4515]
[1723857232673,1.91967,2603.8,2603.6,1.4515]
[1723857232873,2.29284,2603.7,2603.6,1.4515]
[1723857233074,2.64964,2603.7,2603.6,1.106]
[1723857233269,3.01564,2603.7,2603.6,1.106]
[1723857233474,1.0959,2603.7,2603.6,1.106]
[1723857233681,3.01564,2603.7,2603.6,1.106]
[1723857234581,0.7299,2603.7,2603.6,1.106]
[1723857234781,2.64964,2603.7,2603.6,1.106]
[1723857236781,1.50785023,2604.2,2603.6,14.14004293]
[1723857236977,1.88345023,2604.5,2604.1,1.106]
[1723857237179,0.3756,2604.5,2604.3,3.02525]
[1723857237375,0.3756,2604.5,2604.4,0.3691]
[1723857238383,1.51126044,2604.6,2604.4,0.3691]
[1723857238677,0.00341021,2604.6,2604.5,1.106]
[1723857239477,0.00341021,2604.6,2604.4,1.4751]
[1723857240376,0.00341021,2604.6,2604.4,3.39431]
[1723857241686,0.00341021,2604.6,2604.4,1.4751]
[1723857241879,0.00341021,2604.6,2604.4,3.39426]
[1723857242077,0.00341021,2604.6,2604.5,3.02515]
[1723857242281,0.00341021,2604.6,2604.5,3.37695]
[1723857243179,0.00341021,2604.6,2604.5,3.02515]
[1723857245377,0.00341021,2604.6,2604.5,1.106]
[1723857245581,0.35231021,2604.6,2604.5,1.106]
[1723857245989,0.35231021,2604.6,2604.5,3.02515]
[1723857248484,0.35231021,2604.6,2604.5,1.106]
[1723857248884,0.35231021,2604.6,2604.5,3.02515]
[1723857254081,0.00341021,2604.6,2604.5,11.0585159]
[1723857254291,0.00341021,2604.6,2604.5,11.7583159]
[1723857254685,0.00341021,2604.6,2604.5,3.02515]
[1723857254892,0.00341021,2604.6,2604.5,1.106]
[1723857255983,0.37651021,2604.6,2604.5,1.106]
[1723857256598,4.21571021,2604.6,2604.1,0.708]
[1723857256798,1.106,2604.3,2604.0,0.3505]
[1723857257097,1.91944,2604.1,2604.0,0.3505]
[1723857257293,1.91951,2604.0,2603.9,1.106]
[1723857257598,2.27501,2604.0,2603.8,1.106]
[1723857257987,2.27502,2604.0,2603.8,1.106]
[1723857259296,1.91959,2603.9,2603.8,1.106]
[1723857265296,3.38106,2604.0,2603.8,1.106]
[1723857265801,1.91959,2603.9,2603.8,1.106]
[1723857266192,0.3555,2604.0,2603.8,1.106]
[1723857266493,0.3555,2604.0,2603.7,5.7265]
[1723857266494,0.3731,2604.2,2604.0,1.91951]
[1723857266799,4.4677,2604.4,2604.1,1.4735]
[1723857267100,6.38695,2604.4,2604.2,1.106]
[1723857267296,5.97555023,2604.4,2604.2,1.106]
[1723857267594,0.3466,2604.3,2604.1,3.39291]
[1723857267802,4.4677,2604.4,2604.1,3.39291]
[1723857268001,4.4677,2604.4,2604.2,3.02533]
[1723857269096,0.3547,2604.4,2604.2,3.02533]
[1723857270688,0.3547,2604.4,2604.2,1.106]
[1723857271301,0.3547,2604.4,2604.2,3.02535]
[1723857272715,0.3547,2604.4,2604.2,1.106]
[1723857277399,1.86255023,2604.4,2604.2,1.106]
[1723857277602,2.27394,2604.4,2604.2,1.106]
[1723857278002,7.62179023,2604.4,2604.1,3.02544]
[1723857278203,3.78179023,2604.4,2604.1,3.02544]
[1723857278404,1.86255023,2604.4,2604.1,3.02544]
[1723857279410,3.78178023,2604.4,2604.1,3.02544]
[1723857282203,1.50785023,2604.3,2604.2,0.3516]
[1723857283110,1.50785023,2604.4,2604.2,0.3516]
[1723857283307,1.50785023,2604.4,2604.2,1.4576]
[1723857283513,3.42708023,2604.4,2604.2,1.4576]
[1723857284212,1.50785023,2604.3,2604.2,1.4576]
[1723857284609,5.34785023,2604.3,2603.7,5.376]
[1723857284804,5.34785023,2604.3,2603.9,1.106]
[1723857284805,1.91944,2604.1,2603.9,1.106]
[1723857285502,1.91951,2604.0,2603.9,1.106]
[1723857286406,1.91949,2604.1,2603.9,1.106]
[1723857287510,1.91951,2604.0,2603.9,1.106]
[1723857287815,1.91951,2604.0,2603.8,1.4576]
[1723857288110,1.91951,2604.0,2603.8,0.3516]
[1723857288111,3.42744023,2603.9,2603.8,0.3516]
[1723857288306,3.77124023,2603.9,2603.8,0.3516]
[1723857288502,2.26339,2603.9,2603.8,0.3516]
[1723857289214,3.77031073,2603.9,2603.8,0.3516]
[1723857290520,1.91971,2603.8,2603.6,3.02577]
[1723857290716,2.64241,2603.8,2603.6,3.02577]
[1723857291517,0.7227,2603.8,2603.7,3.02574]
[1723857291907,0.3451,2603.8,2603.7,3.02574]
[1723857294523,2.26476,2603.8,2603.7,1.106]
[1723857294913,1.91974,2603.7,2603.6,1.106]
[1723857298110,1.91974,2603.7,2603.6,3.02581]
[1723857298315,6.97952073,2603.8,2603.6,1.106]
[1723857298521,5.4726,2603.8,2603.6,3.02578]
[1723857298818,5.4726,2603.8,2603.7,1.106]
[1723857299413,6.97952073,2603.8,2603.7,1.106]
[1723857299621,5.4726,2603.8,2603.7,1.106]
[1723857300323,6.97952073,2603.8,2603.7,1.106]
[1723857300716,1.91974,2603.7,2603.6,1.106]
[1723857301022,3.42666073,2603.7,2603.6,1.106]
[1723857302322,3.42666073,2603.7,2603.6,3.02581]
[1723857302819,1.91981,2603.6,2603.5,0.37676257]
[1723857303121,5.03736184,2603.6,2603.5,0.00396257]
[1723857303319,1.92025,2603.0,2602.9,0.3582]
[1723857303722,1.92033,2602.9,2602.8,1.106]
[1723857303924,2.64213,2602.9,2602.8,1.106]
[1723857304116,2.64213,2602.9,2602.6,0.3517]
[1723857304117,1.92047,2602.7,2602.6,0.3517]
[1723857304314,1.92047,2602.7,2602.6,1.11061415]
[1723857304315,1.92422103,2602.7,2602.6,1.11061415]
[1723857305016,1.92422103,2602.7,2602.6,0.00461415]
[1723857305232,5.76662103,2602.7,2602.6,0.00461415]
[1723857305725,0.00375103,2602.7,2602.6,0.00461415]
[1723857306717,0.00375103,2602.7,2602.6,1.92516415]
[1723857307322,0.00375103,2602.7,2602.6,0.00461415]
[1723857307524,1.92422103,2602.7,2602.6,0.00461415]
[1723857307918,0.00375103,2602.7,2602.6,0.00461415]
[1723857308119,0.00375103,2602.7,2602.6,1.92516415]
[1723857310718,0.00375103,2602.7,2602.6,5.76756415]
[1723857310919,0.00375103,2602.7,2602.6,15.54683078]
[1723857311119,0.00375103,2602.7,2602.6,10.54683078]
[1723857311315,0.00375103,2602.7,2602.6,15.54683078]
[1723857312827,0.00375103,2602.7,2602.6,10.54683078]
[1723857313028,0.00375103,2602.7,2602.6,15.54683078]
[1723857313426,0.00375103,2602.7,2602.6,10.54683078]
[1723857313626,0.00375103,2602.7,2602.6,15.54683078]
[1723857313930,0.00375103,2602.7,2602.6,10.54683078]
[1723857314328,0.00375103,2602.7,2602.6,8.26458078]
[1723857314530,0.00375103,2602.7,2602.6,1.92516415]
[1723857321134,0.00375103,2602.7,2602.5,3.5686]
[1723857321135,1.92062,2602.5,2602.4,0.00576136]
[1723857321723,2.29662,2602.5,2602.4,0.00576136]
[1723857322135,0.376,2602.5,2602.4,0.00954836]
[1723857322330,0.00375103,2602.7,2602.5,1.92057]
[1723857322632,2.28347103,2602.7,2602.4,1.93019836]
[1723857322832,1.92057,2602.6,2602.4,1.93019836]
[1723857323025,2.28347103,2602.7,2602.4,1.93019836]
[1723857323331,1.92055,2602.6,2602.4,1.93022836]
[1723857323528,2.28347103,2602.7,2602.4,1.93022836]
[1723857325225,0.36295103,2602.7,2602.5,1.9206]
[1723857325538,2.28342103,2602.7,2602.6,0.3504]
[1723857326039,0.36295103,2602.7,2602.6,2.27095]
[1723857326437,0.36295103,2602.7,2602.6,0.3504]
[1723857326637,2.28343103,2602.7,2602.4,3.03619836]
[1723857326934,0.36295103,2602.7,2602.5,1.92059]
[1723857327332,0.36295103,2602.7,2602.4,1.11554836]
[1723857327333,0.36295103,2602.7,2602.6,1.92055]
[1723857327526,0.36295103,2602.7,2602.6,3.02655]
[1723857327723,0.00375103,2602.7,2602.6,3.02655]
[1723857333342,2.61434661,2603.7,2602.8,1.9204]
[1723857333636,0.3628,2603.6,2603.5,1.91984]
[1723857334439,0.36744902,2603.6,2603.5,1.91984]
[1723857334740,5.31424902,2603.6,2603.3,1.91999]
[1723857334941,1.92006,2603.3,2603.0,1.9202]
[1723857335243,0.7149,2603.2,2603.1,1.92018]
[1723857335434,1.106,2603.4,2603.3,1.92003]
[1723857336838,1.106,2603.4,2603.2,1.92007]
[1723857337436,1.106,2603.4,2603.3,1.92003]
[1723857337837,4.9476,2603.4,2603.2,1.92007]
[1723857338036,1.106,2603.4,2603.2,1.92007]
[1723857341142,2.63481,2603.5,2603.0,1.9202]
[1723857341143,3.02606,2603.3,2603.0,1.9202]
[1723857341343,3.37786,2603.3,2603.0,1.9202]
[1723857342438,3.37786,2603.3,2603.1,1.92017]
[1723857343242,4.3138,2603.2,2602.9,0.3587]
[1723857343450,3.02625,2603.0,2602.8,1.92039]
[1723857343641,3.02625,2603.0,2602.4,0.37374836]
[1723857343642,4.6555,2602.9,2602.4,1.11554836]
[1723857343837,8.08422661,2602.9,2602.6,1.92051]
[1723857344033,4.6555,2602.9,2602.4,1.11554836]
[1723857344233,1.106,2602.5,2602.4,0.00954836]
[1723857344446,1.106,2602.5,2602.4,1.93023836]
[1723857344640,1.106,2602.5,2602.4,0.00954836]
[1723857344841,1.4551,2602.5,2602.4,0.00954836]
[1723857345036,1.4551,2602.5,2602.4,1.93023836]
[1723857345237,0.3491,2602.5,2602.4,1.93023836]
[1723857346342,0.3417,2602.9,2602.4,1.93023836]
[1723857346343,1.50834661,2603.1,2602.4,13.16574836]
[1723857346541,0.7306,2603.2,2603.0,1.92025]
[1723857347043,1.8366,2603.2,2603.0,1.92025]
[1723857347447,1.8366,2603.2,2602.7,4.3138]
[1723857347646,5.26509661,2603.2,2602.8,1.92036]
[1723857347948,4.15909661,2603.2,2602.8,1.92036]
[1723857349549,2.23894661,2603.2,2602.7,3.2078]
[1723857349749,1.50834661,2603.1,2602.4,1.00537447]
[1723857350056,1.9204,2602.8,2602.5,1.92057]
[1723857350245,2.6263,2602.7,2602.4,0.00954836]
[1723857350450,1.92055,2602.6,2602.4,0.00954836]
[1723857350754,1.92062,2602.5,2602.4,0.00954836]
[1723857351349,1.92058,2602.6,2602.4,0.00954836]
[1723857353243,2.55994661,2602.7,2602.4,1.93019836]
[1723857353451,1.0516,2602.7,2602.5,1.92059]
[1723857353851,1.0516,2602.7,2602.4,1.93019836]
[1723857354354,1.0516,2602.7,2602.5,1.92062]
[1723857354553,1.0516,2602.7,2602.4,1.93019836]
[1723857355240,1.0516,2602.7,2602.4,5.13799836]
[1723857357048,1.50834661,2602.8,2602.6,1.92051]
[1723857357250,1.50834661,2602.9,2602.7,0.367]
[1723857357545,1.87764661,2602.9,2602.7,0.367]
[1723857360153,1.50834661,2602.9,2602.8,5.1282]
[1723857360357,2.51391103,2603.2,2603.1,1.92018]
[1723857360358,1.50834661,2603.2,2603.1,1.92018]
[1723857360659,1.50834661,2603.3,2603.1,1.92018]
[1723857361452,1.50834661,2603.3,2603.0,1.92021]
[1723857363051,3.42839661,2603.3,2602.9,1.92028]
[1723857363659,1.50834661,2603.3,2602.8,5.12819]
[1723857363860,1.9202,2603.1,2602.8,3.2078]
[1723857364056,1.9202,2603.1,2602.8,5.12819]
[1723857364259,0.3533,2603.0,2602.8,3.2078]
[1723857366155,0.3625,2602.9,2602.8,3.2078]
[1723857366562,0.3625,2602.9,2602.5,0.3456]
[1723857366563,0.3625,2602.9,2602.5,3.2078]
[1723857366862,1.50834661,2602.8,2602.5,3.2078]
[1723857367169,1.92062,2602.5,2602.4,0.00954836]
[1723857367555,3.79683661,2602.6,2602.4,0.00954836]
[1723857367965,0.3692,2602.5,2602.4,0.00954836]
[1723857369462,2.28982,2602.5,2602.4,0.00954836]
[1723857369665,6.13222,2602.5,2602.4,0.00954836]
[1723857369861,7.64056661,2602.5,2602.4,0.00954836]
[1723857370068,6.13222,2602.5,2602.4,0.00954836]
[1723857370861,7.64056661,2602.5,2602.4,0.00954836]
[1723857371560,6.13222,2602.5,2602.4,0.00954836]
[1723857372461,1.92062,2602.5,2602.4,0.00954836]
[1723857375867,7.68364,2602.5,2602.4,0.00954836]
[1723857376070,9.19198661,2602.5,2602.4,0.00954836]
[1723857376571,7.68364,2602.5,2602.4,0.00954836]
[1723857376770,9.69476882,2602.5,2602.4,0.00954836]
[1723857377459,14.69476882,2602.5,2602.4,0.00954836]
[1723857377664,1.92095,2602.1,2601.8,1.9211]
[1723857377866,0.3775,2602.0,2601.9,1.92106]
[1723857378459,1.92089,2602.2,2602.0,1.92099]
[1723857378659,1.92089,2602.2,2602.0,1.92574338]
[1723857378859,1.92089,2602.2,2602.0,0.00475338]
[1723857379566,1.92089,2602.2,2602.0,1.92573338]
[1723857380178,0.74686136,2602.4,2602.0,3.84795338]
[1723857380179,0.36936136,2602.4,2602.0,3.84795338]
[1723857380468,0.36936136,2602.4,2602.3,1.92077]
[1723857380469,0.00576136,2602.4,2602.3,1.92077]
[1723857380774,0.00576136,2602.4,2602.3,5.76317]
[1723857382971,0.347,2602.7,2602.3,5.76317]
[1723857382972,3.76891373,2603.0,2602.7,1.92044]
[1723857383169,4.14241373,2603.0,2602.8,0.3787]
[1723857383973,1.92032,2602.9,2602.8,0.3787]
[1723857384864,4.14243373,2603.0,2602.8,0.3787]
[1723857385268,1.88013373,2603.0,2602.8,2.29906]
[1723857385480,3.42681373,2603.1,2602.8,2.29906]
[1723857385779,1.92018,2603.1,2602.8,5.50686]
[1723857386278,1.88589509,2603.2,2602.8,3.5865]
[1723857386486,0.37926136,2603.2,2602.8,3.5865]
[1723857386774,2.29937136,2603.2,2602.9,1.92029]
[1723857387179,3.80600509,2603.2,2602.9,1.92029]
[1723857388877,1.92019,2603.1,2602.8,5.50685]
[1723857389980,3.80604509,2603.2,2602.8,5.50685]
[1723857390176,3.80604509,2603.2,2602.9,1.92032]
[1723857392578,3.80604509,2603.2,2602.8,5.50685]
[1723857392781,3.80604509,2603.2,2602.9,1.92032]
[1723857393672,3.80604509,2603.2,2602.8,3.5865]
[1723857393673,3.80604509,2603.2,2602.8,5.50685]
[1723857393879,1.92019,2603.1,2602.8,5.50685]
[1723857394985,1.9202,2603.1,2602.8,5.50687]
[1723857395182,1.9202,2603.1,2602.5,0.99582611]
[1723857395183,5.34823373,2603.1,2602.5,5.12837]
[1723857395394,1.92036,2602.9,2602.6,1.92052]
[1723857396083,0.3769,2602.8,2602.7,1.92047]
[1723857396485,1.9203,2603.0,2602.7,1.92047]
[1723857397086,1.88353373,2603.1,2602.5,3.5669]
[1723857397386,0.3769,2603.1,2602.9,1.92029]
[1723857397580,0.3769,2603.1,2603.0,0.3591]
[1723857397783,2.29708,2603.1,2603.0,0.3591]
[1723857398282,0.3769,2603.1,2603.0,0.3591]
[1723857399088,2.29708,2603.1,2603.0,0.3591]
[1723857401488,0.3769,2603.1,2603.0,0.3591]
[1723857402784,2.29708,2603.1,2603.0,0.3591]
[1723857403488,2.29708,2603.1,2602.8,1.92036]
[1723857403788,2.29708,2603.1,2602.8,2.28196]
[1723857404292,1.92025,2603.0,2602.8,2.28196]
[1723857404689,2.29711,2603.1,2602.8,1.92036]
[1723857405380,2.29711,2603.1,2602.9,1.92031]
[1723857406091,2.25711,2603.1,2602.9,1.92031]
[1723857408485,0.3369,2603.1,2602.9,1.92031]
[1723857410389,2.25708,2603.1,2602.8,1.92036]
[1723857411688,0.3369,2603.1,2602.9,1.92031]
[1723857411886,1.4429,2603.1,2602.9,1.92031]
[1723857412089,3.36308,2603.1,2602.9,1.92031]
[1723857413392,3.36308,2603.1,2602.7,4.3138]
[1723857413393,3.36308,2603.1,2602.8,1.92037]
[1723857413593,0.3721,2603.0,2602.8,1.92037]
[1723857413993,0.3495,2602.9,2602.8,1.92037]
[1723857414591,0.3495,2602.9,2602.7,3.2078]
[1723857414995,2.26987,2602.9,2602.7,3.2078]
[1723857415398,2.26987,2602.9,2602.7,5.12824]
[1723857416000,2.26983,2602.9,2602.7,5.12824]
[1723857416199,0.3495,2602.9,2602.7,3.2078]
[1723857416502,2.26986,2602.9,2602.7,5.12826]
[1723857417803,1.50663373,2603.1,2602.8,4.9484]
[1723857418105,0.00576136,2603.2,2603.1,1.92018]
[1723857418493,0.00576136,2603.2,2603.1,5.76178]
[1723857420796,0.00576136,2603.2,2603.1,3.8416]
[1723857421003,3.84736136,2603.2,2602.7,3.2078]
[1723857421199,3.84736136,2603.2,2602.6,0.3753]
[1723857421200,0.7506,2603.1,2602.6,0.3753]
[1723857421503,1.92037,2602.9,2602.6,2.29581]
[1723857422104,1.92047,2602.7,2602.6,0.3753]
[1723857422404,1.92069,2602.4,2602.3,5.378]
[1723857422698,1.92069,2602.4,2602.0,0.00475338]
[1723857422699,1.50792663,2602.4,2602.0,0.00475338]
[1723857422907,1.92091,2602.1,2602.0,0.00475338]
[1723857423101,1.92086,2602.2,2602.0,0.00475338]
[1723857423305,0.3552,2602.1,2602.0,0.00475338]
[1723857423502,2.27611,2602.1,2602.0,0.00475338]
[1723857423999,0.3552,2602.1,2602.0,0.00475338]
[1723857424205,1.86312663,2602.1,2602.0,0.00475338]
[1723857424391,3.78403663,2602.1,2602.0,0.00475338]
[1723857424704,0.3552,2602.1,2602.0,0.00475338]
[1723857424894,1.50792663,2602.2,2602.0,3.84795338]
[1723857425093,1.50792663,2602.3,2602.1,1.92087]
[1723857425295,1.50792663,2602.3,2602.2,0.3587]
[1723857425798,3.42869663,2602.3,2602.2,0.3587]
[1723857426296,1.50792663,2602.3,2602.2,0.3587]
[1723857426697,3.42869663,2602.3,2602.2,0.3587]
[1723857426896,1.50792663,2602.3,2602.2,0.3587]
[1723857428001,3.78385663,2602.4,2602.2,0.3587]
[1723857428196,1.86312663,2602.4,2602.2,0.3587]
[1723857428396,3.78384663,2602.4,2602.2,0.3587]
[1723857428594,4.71572663,2602.5,2602.2,4.2011]
[1723857428799,3.42824663,2602.9,2602.6,1.92051]
[1723857429111,3.78934663,2602.9,2602.7,0.3736]
[1723857429306,1.9204,2602.8,2602.7,0.3736]
[1723857429508,3.42832663,2602.8,2602.4,5.12845]
[1723857429708,1.92047,2602.7,2602.4,5.12845]
[1723857430001,3.42834663,2602.8,2602.5,1.92059]
[1723857430605,3.78937663,2602.9,2602.6,1.92053]
[1723857430802,12.43192663,2603.0,2602.4,3.2078]
[1723857431111,1.50792663,2603.0,2602.8,1.92036]
[1723857431406,1.92025,2603.0,2602.9,0.3633]
[1723857431607,3.80664663,2603.1,2602.9,0.3633]
[1723857431909,0.00576136,2603.2,2603.1,1.92018]
[1723857432108,0.00576136,2603.2,2603.1,5.76178]
[1723857436408,0.00576136,2603.2,2603.1,15.18229184]
[1723857436604,0.000392,2603.2,2603.1,15.18229184]
[1723857439514,0.000392,2603.2,2603.1,10.18229184]
[1723857439810,0.000392,2603.2,2603.1,15.18229184]